fUST/lending_fUST_20260226
["ID","MTS","AMOUNT","RATE_DAILY","PERIOD"]
[406653290,1772037039546,-500.0,0.00019,7]
[406653291,1772037039560,-500.0,0.00019,7]
[406653292,1772037039573,-500.0,0.00019,7]
[406653293,1772037039582,-500.0,0.00019,7]
[406653294,1772037039592,-500.0,0.00019,7]
[406653295,1772037039602,-500.0,0.00019,7]
[406653296,1772037039612,-500.0,0.00019,7]
[406653297,1772037039621,-500.0,0.00019,7]
[406653298,1772037039631,-500.0,0.00019,7]
[406653299,1772037039642,-500.0,0.00019,7]
[406653300,1772037039652,-500.0,0.00019,7]
[406653301,1772037039661,-500.0,0.00019,7]
[406653302,1772037039671,-500.0,0.00019,7]
[406653303,1772037039682,-500.0,0.00019,7]
[406653304,1772037039691,-500.0,0.00019,7]
[406653305,1772037039701,-500.0,0.00019,7]
[406653306,1772037039712,-500.0,0.00019,7]
[406653307,1772037039722,-500.0,0.00019,7]
[406653308,1772037039732,-500.0,0.00019,7]
[406653309,1772037039742,-500.0,0.00019,7]
[406653310,1772037039752,-500.0,0.00019,7]
[406653311,1772037039761,-500.0,0.00019,7]
[406653312,1772037039771,-500.0,0.00019,7]
[406653313,1772037039781,-500.0,0.00019,7]
[406653314,1772037039791,-500.0,0.00019,7]
[406653315,1772037039800,-500.0,0.00019,7]
[406653316,1772037039810,-500.0,0.00019,7]
[406653317,1772037039821,-500.0,0.00019,7]
[406653318,1772037039830,-500.0,0.00019,7]
[406653319,1772037039839,-500.0,0.00019,7]
[406653320,1772037039848,-551.42,0.00019,7]
[406653321,1772037039857,-500.0,0.00019,7]
[406653322,1772037039867,-500.0,0.00019,7]
[406653323,1772037039876,-500.0,0.00019,7]
[406653324,1772037039885,-500.0,0.00019,7]
[406653325,1772037039894,-500.0,0.00019,7]
[406653326,1772037039904,-500.0,0.00019,7]
[406653327,1772037039913,-500.0,0.00019,7]
[406653328,1772037039923,-500.0,0.00019,7]
[406653329,1772037039932,-500.0,0.00019,7]
[406653330,1772037039942,-500.0,0.00019,7]
[406653331,1772037039955,-500.0,0.00019,7]
[406653332,1772037039965,-500.0,0.00019,7]
[406653333,1772037039974,-500.0,0.00019,7]
[406653334,1772037039983,-500.0,0.00019,7]
[406653335,1772037039993,-500.0,0.00019,7]
[406653336,1772037040003,-500.0,0.00019,7]
[406653337,1772037040012,-500.0,0.00019,7]
[406653338,1772037040022,-500.0,0.00019,7]
[406653339,1772037040031,-500.0,0.00019,7]
[406653340,1772037040040,-500.0,0.00019,7]
[406653341,1772037040051,-500.0,0.00019,7]
[406653342,1772037040060,-500.0,0.00019,7]
[406653343,1772037040072,-529.0,0.00019017,2]
[406653344,1772037040082,-355.0,0.00019095,2]
[406653345,1772037040092,-355.0,0.00019137,2]
[406653346,1772037040103,-355.0,0.00019141,2]
[406653347,1772037040114,-355.0,0.00019174,2]
[406653349,1772037040123,-1152.0,0.00019175,2]
[406653351,1772037040133,-500.0,0.00019178,2]
[406653353,1772037040144,-500.0,0.00019178,2]
[406653355,1772037040155,-500.0,0.00019178,2]
[406653357,1772037040165,-500.0,0.00019178,2]
[406653358,1772037040175,-500.0,0.00019178,2]
[406653359,1772037040186,-500.0,0.00019178,2]
[406653360,1772037040195,-500.0,0.00019178,2]
[406653361,1772037040205,-500.0,0.00019178,2]
[406653362,1772037040216,-355.0,0.00019178,2]
[406653363,1772037040226,-500.0,0.00019178,2]
[406653364,1772037040235,-500.0,0.00019178,2]
[406653365,1772037040245,-231.0,0.000192,2]
[406653366,1772037040255,-487.0,0.00019241,2]
[406653367,1772037040265,-487.0,0.00019241,2]
[406653368,1772037040275,-487.0,0.00019241,2]
[406653369,1772037040284,-487.0,0.00019241,2]
[406653370,1772037040294,-487.0,0.00019241,2]
[406653371,1772037040303,-487.0,0.00019241,2]
[406653372,1772037040313,-487.0,0.00019241,2]
[406653373,1772037040324,-487.0,0.00019241,2]
[406653374,1772037040334,-860.18,0.00019241,2]
[406653375,1772037040344,-1000.0,0.0001934,2]
[406653376,1772037040354,-450.0,0.00019452,2]
[406653377,1772037040363,-1026.98191508,0.000196,2]
[406653378,1772037040373,-1992.46461589,0.00019606,3]
[406653379,1772037040383,-3542.15931713,0.00019606,3]
[406653380,1772037040393,-1516.70528899,0.00019606,3]
[406653381,1772037040402,-287.57167597,0.00019606,3]
[406653382,1772037040412,-5529.08930909,0.00019606,3]
[406653383,1772037040422,-404.81189894,0.00019606,3]
[406653384,1772037040431,-3409.17431332,0.00019606,3]
[406653385,1772037040441,-150.35344201,0.00019606,3]
[406653386,1772037040451,-1619.24759575,0.00019606,3]
[406653387,1772037040460,-529.0,0.00019701,2]
[406653388,1772037040470,-529.0,0.00019767,2]
[406653389,1772037040479,-1638.56497571,0.00019788,2]
[406653390,1772037040492,-912.47394826,0.00019788,2]
[406653391,1772037040503,-4325.91726692,0.00019788,2]
[406653714,1772037044235,-3942.4100184,0.00017384,2]
[406653716,1772037044245,-27595.26311911,0.00019788,2]
[406653718,1772037044255,-3160.9065951,0.00019788,2]
[406653720,1772037044265,-2218.56723982,0.000198,2]
[406653722,1772037044275,-789.0,0.000198,2]
[406653724,1772037044284,-724485.25098861,0.000198,2]
[406653726,1772037044295,-43855.11290202,0.000198,2]
[406653808,1772037045065,-132.09520745,0.000198,2]
[406653980,1772037046778,-1076.6151088,0.00013796,2]
[406653982,1772037046788,-427.47198437,0.00019291,2]
[406653998,1772037046930,-266.66468523,0.00019291,2]
[406654000,1772037046945,-3248.2733488,0.00019291,2]
[406654002,1772037046960,-16751.7266512,0.000198,2]
[406654004,1772037046977,-97606.18815836,0.000198,2]
[406654076,1772037076384,400.52339024,0.00013699,2]
[406654078,1772037078124,645.88380501,0.00013699,2]
[406654079,1772037085778,-476.05959377,0.000157,2]
[406654089,1772037479810,517.85,9.99e-05,2]
[406654090,1772037480073,517.85,9.99e-05,2]
[406654091,1772037608642,172.41,9.5e-05,2]
[406654092,1772037610682,172.41,9.8e-05,2]
[406654093,1772037611380,172.41,0.000101,2]
[406654094,1772037611937,172.41,0.000104,2]
[406654095,1772037623890,385.94005142,0.00012001,2]
[406654163,1772038169160,-927.65415989,0.00012896,2]
[406654164,1772038169180,-150.0,0.00012898,2]
[406654165,1772038169200,-603.0,0.000129,2]
[406654166,1772038169219,-1971.2050092,0.000129,2]
[406654167,1772038169238,-251.94,0.00012913,2]
[406654168,1772038169257,-198.67702345,0.00012992,2]
[406654169,1772038169278,-400.0,0.00012993,4]
[406654170,1772038169299,-300.0,0.00012994,2]
[406654171,1772038169318,-555.38444278,0.00012995,2]
[406654172,1772038169337,-500.0,0.00012995,2]
[406654173,1772038169363,-500.0,0.00012995,2]
[406654174,1772038169383,-500.0,0.00012995,2]
[406654175,1772038169403,-449.28304053,0.00012995,2]
[406654176,1772038169425,-500.0,0.00012995,2]
[406654177,1772038169445,-500.0,0.00012995,2]
[406654178,1772038169466,-500.0,0.00012995,2]
[406654179,1772038169487,-537.45827028,0.00012995,2]
[406654180,1772038169509,-500.0,0.00012995,2]
[406654181,1772038169530,-500.0,0.00012995,2]
[406654182,1772038169551,-500.0,0.00012995,2]
[406654183,1772038169571,-364.25351389,0.00012995,2]
[406654184,1772038169592,-117.32074343,0.00012995,2]
[406654210,1772038215154,224.2769888,6.828e-05,2]
[406654237,1772038231592,-1032.0,0.00012995,2]
[406654239,1772038231602,-300.0,0.00012996,2]
[406654241,1772038231611,-5921.30728049,0.00013,2]
[406654246,1772038231648,-7542.08566576,0.00013,2]
[406654863,1772038237904,-25165.60705375,0.00013,2]
[406654865,1772038237914,-2058.504168,0.0001326,2]
[406654867,1772038237923,-500.0,0.00013698,2]
[406654869,1772038237932,-400.52339024,0.00013699,2]
[406654871,1772038237942,-500.0,0.00013699,2]
[406654873,1772038237951,-2058.504168,0.00013818,2]
[406654875,1772038237960,-1000.0,0.000139,2]
[406654877,1772038237970,-300.0,0.00013942,2]
[406654879,1772038237980,-382.43394569,0.00014247,2]
[406654881,1772038237990,-420.0,0.00014252,2]
[406654883,1772038238000,-2058.504168,0.00014376,2]
[406654885,1772038238010,-9972.13648525,0.00014376,2]
[406654887,1772038238019,-927.65415985,0.00014647,2]
[406654889,1772038238029,-177.0,0.00014898,2]
[406654891,1772038238039,-2058.504168,0.00014934,2]
[406654893,1772038238049,-1971.2050092,0.00014968,2]
[406654895,1772038238059,-2058.504168,0.00015492,2]
[406654897,1772038238068,-152.0,0.000155,2]
[406654899,1772038238078,-587.0,0.0001563,2]
[406654901,1772038238088,-588.49600886,0.00015659,2]
[406654902,1772038238097,-683.86811623,0.000157,2]
[406654903,1772038238106,-153.25521892,0.000157,2]
[406654904,1772038238115,-20000.0,0.00016,2]
[406654905,1772038238125,-2058.504168,0.0001605,2]
[406654906,1772038238135,-366.9574,0.00016117,120]
[406654907,1772038238144,-927.65415985,0.00016398,2]
[406654908,1772038238153,-204.0,0.00016898,2]
[406654909,1772038238163,-1971.2050092,0.0001704,2]
[406654910,1772038238172,-823.0,0.00017141,2]
[406654911,1772038238181,-250.0,0.00017171,2]
[406654912,1772038238190,-500.0,0.00017713,2]
[406654913,1772038238200,-209.40437684,0.00017713,2]
[406654914,1772038238209,-217.15233878,0.00017713,2]
[406654915,1772038238218,-500.0,0.00017713,2]
[406654917,1772038238227,-225.18697532,0.00017713,2]
[406654918,1772038238235,-500.0,0.00017713,2]
[406654920,1772038238244,-233.51889341,0.00017713,2]
[406654922,1772038238254,-500.0,0.00017713,2]
[406654924,1772038238264,-242.15909246,0.00017713,2]
[406654925,1772038238273,-500.0,0.00017713,2]
[406654927,1772038238283,-251.11897888,0.00017713,2]
[406654928,1772038238292,-500.0,0.00017713,2]
[406654929,1772038238303,-500.0,0.00017713,2]
[406654930,1772038238315,-260.4103811,0.00017713,2]
[406654931,1772038238325,-500.0,0.00017713,2]
[406654932,1772038238335,-270.0455652,0.00017713,2]
[406654933,1772038238346,-500.0,0.00017713,2]
[406654934,1772038238356,-280.03725112,0.00017713,2]
[406654935,1772038238366,-500.0,0.00017713,2]
[406654936,1772038238376,-290.39862941,0.00017713,2]
[406654937,1772038238388,-301.1433787,0.00017713,2]
[406654938,1772038238398,-500.0,0.00017713,2]
[406654939,1772038238410,-150.0,0.00017808,2]
[406654941,1772038238420,-187.61,0.00017837,2]
[406654942,1772038238430,-20000.0,0.00018,2]
[406654943,1772038238440,-927.65415985,0.00018149,2]
[406654944,1772038238450,-250.0,0.00018356,2]
[406654945,1772038238460,-1152.0,0.00018798,2]
[406654946,1772038238470,-350.226,0.00018897,2]
[406654947,1772038238480,-231.0,0.00018898,2]
[406654948,1772038238490,-350.0,0.00018904,2]
[406654949,1772038238500,-1971.2050092,0.00019112,2]
[406654950,1772038238510,-695.3,0.00019139,2]
[406654951,1772038238521,-245.91,0.00019139,2]
[406654952,1772038238532,-245.91,0.00019139,2]
[406654953,1772038238547,-245.91,0.00019139,2]
[406654954,1772038238561,-245.91,0.00019139,2]
[406654955,1772038238571,-245.91,0.00019139,2]
[406654956,1772038238582,-245.91,0.00019139,2]
[406654957,1772038238592,-245.89,0.00019139,2]
[406654958,1772038238602,-695.29590228,0.00019239,2]
[406654959,1772038238612,-164.89094981,0.00019243,2]
[406654960,1772038238623,-1399.856,0.00019355,2]
[406654961,1772038238634,-2191.767,0.00019355,2]
[406654962,1772038238650,-430.0,0.00019355,2]
[406654963,1772038238664,-728.0,0.00019355,2]
[406654964,1772038238674,-317.42536284,0.00019452,2]
[406654965,1772038238685,-600.0,0.00019561,2]
[406654966,1772038238695,-1043.11420883,0.00019606,3]
[406654967,1772038238708,-106.02220836,0.00019606,3]
[406654968,1772038238720,-2730.88958643,0.00019606,3]
[406654969,1772038238733,-908.77419692,0.00019606,3]
[406654970,1772038238743,-600.81235428,0.00019606,3]
[406654971,1772038238753,-684.65461005,0.00019788,2]
[406654972,1772038238763,-805.75883875,0.000198,2]
[406654984,1772038240078,-1627.50761692,0.000198,2]
[406654997,1772038243114,-460.23114364,0.000198,2]
[406654998,1772038243221,-67149.81641642,0.000198,2]
[406654999,1772038243233,-94205.49782249,0.000198,2]
[406655000,1772038243243,-164.89094981,0.00019838,2]
[406655001,1772038243252,-5888.0,0.0001984,2]
[406655002,1772038243262,-529.0,0.00019866,2]
[406655003,1772038243272,-2913.0,0.00019895,2]
[406655004,1772038243281,-157471.78393477,0.000199,2]
[406655005,1772038243291,-927.65415985,0.000199,2]
[406655006,1772038243305,-13253.89692746,0.000199,2]
[406655007,1772038243314,-20681.12,0.0001998,2]
[406655008,1772038243324,-110440.57970315,0.0002,2]
[406655009,1772038243335,-6601.01572208,0.0002,2]
[406655010,1772038243347,-644.66,0.0002,2]
[406655022,1772038247575,-456.3799828,0.0002,2]
[406655026,1772038530363,163.38,0.000157,120]
[406655079,1772039197106,-1594.37142736,0.000129,2]
[406655080,1772039197128,-150.0,0.00012924,2]
[406655081,1772039197149,-255.62857264,0.00012991,2]
[406655082,1772039198770,-944.37142736,0.00012991,2]
[406655083,1772039198794,-300.0,0.00012991,2]
[406655084,1772039198815,-644.4956092,0.00012991,2]
[406655085,1772039198836,-111.13296344,0.00012991,2]
[406655086,1772039199713,-388.86703656,0.00012991,2]
[406655087,1772039199735,-500.0,0.00012991,2]
[406655088,1772039199757,-500.0,0.00012991,2]
[406655089,1772039199781,-500.0,0.00012991,2]
[406655090,1772039199802,-111.13296344,0.00012991,2]
[406655091,1772039200870,-475.29238795,0.00012991,2]
[406655092,1772039200892,-500.0,0.00012991,2]
[406655093,1772039200914,-500.0,0.00012991,2]
[406655094,1772039200936,-500.0,0.00012991,2]
[406655095,1772039200958,-24.70761205,0.00012991,2]
[406655096,1772039201993,-475.29238795,0.00012991,2]
[406655097,1772039202015,-500.0,0.00012991,2]
[406655098,1772039202038,-500.0,0.00012991,2]
[406655099,1772039202060,-500.0,0.00012991,2]
[406655100,1772039202082,-24.70761205,0.00012991,2]
[406655101,1772039204484,-475.29238795,0.00012991,2]
[406655102,1772039204507,-500.0,0.00012991,2]
[406655103,1772039204529,-500.0,0.00012991,2]
[406655104,1772039204552,-500.0,0.00012991,2]
[406655105,1772039204577,-24.70761205,0.00012991,2]
[406655106,1772039211207,-475.29238795,0.00012991,2]
[406655107,1772039211230,-500.0,0.00012991,2]
[406655108,1772039211252,-500.0,0.00012991,2]
[406655109,1772039211275,-224.70761205,0.00012991,2]
[406655110,1772039214292,-208.03180782,0.00012991,2]
[406655112,1772039232656,-300.0,0.0001299,2]
[406655113,1772039232680,-67.26058013,0.00012991,2]
[406655114,1772039232701,-343.7184498,0.00012991,2]
[406655115,1772039232722,-500.0,0.00012991,2]
[406655116,1772039232742,-489.02097007,0.00012991,2]
[406655117,1772039234820,-10.97902993,0.00012991,2]
[406655118,1772039234845,-500.0,0.00012991,2]
[406655119,1772039234868,-500.0,0.00012991,2]
[406655120,1772039234891,-376.25546646,0.00012991,2]
[406655121,1772039234913,-153.74582702,0.00012991,2]
[406655122,1772039234936,-159.01967659,0.00012991,2]
[406655123,1772039235869,-340.98032341,0.00012991,2]
[406655124,1772039235891,-500.0,0.00012991,2]
[406655125,1772039235912,-500.0,0.00012991,2]
[406655126,1772039235933,-359.01967659,0.00012991,2]
[406655127,1772039235983,-140.98032341,0.00012991,2]
[406655128,1772039236004,-500.0,0.00012991,2]
[406655129,1772039236027,-500.0,0.00012991,2]
[406655130,1772039236048,-200.0,0.00012991,2]
[406655131,1772039236071,-359.01967659,0.00012991,2]
[406655132,1772039236201,-140.98032341,0.00012991,2]
[406655133,1772039236223,-500.0,0.00012991,2]
[406655134,1772039236245,-500.0,0.00012991,2]
[406655135,1772039236267,-500.0,0.00012991,2]
[406655136,1772039236288,-59.01967659,0.00012991,2]
[406655137,1772039236436,-440.98032341,0.00012991,2]
[406655138,1772039236458,-500.0,0.00012991,2]
[406655139,1772039236479,-500.0,0.00012991,2]
[406655140,1772039236500,-259.01967659,0.00012991,2]
[406655141,1772039237248,-240.98032341,0.00012991,2]
[406655142,1772039237273,-500.0,0.00012991,2]
[406655143,1772039237294,-500.0,0.00012991,2]
[406655144,1772039237316,-459.01967659,0.00012991,2]
[406655145,1772039238480,-40.98032341,0.00012991,2]
[406655146,1772039238503,-500.0,0.00012991,2]
[406655147,1772039238526,-500.0,0.00012991,2]
[406655148,1772039238549,-500.0,0.00012991,2]
[406655149,1772039238575,-159.01967659,0.00012991,2]
[406655150,1772039239482,-340.98032341,0.00012991,2]
[406655151,1772039239507,-500.0,0.00012991,2]
[406655152,1772039239530,-500.0,0.00012991,2]
[406655153,1772039239553,-359.01967659,0.00012991,2]
[406655154,1772039239896,-140.98032341,0.00012991,2]
[406655155,1772039239920,-500.0,0.00012991,2]
[406655156,1772039239943,-500.0,0.00012991,2]
[406655157,1772039239969,-500.0,0.00012991,2]
[406655158,1772039239994,-59.01967659,0.00012991,2]
[406655159,1772039240256,-440.98032341,0.00012991,2]
[406655160,1772039240280,-500.0,0.00012991,2]
[406655161,1772039240303,-500.0,0.00012991,2]
[406655162,1772039240328,-259.01967659,0.00012991,2]
[406655163,1772039240710,-240.98032341,0.00012991,2]
[406655164,1772039240735,-500.0,0.00012991,2]
[406655165,1772039240760,-500.0,0.00012991,2]
[406655166,1772039240786,-459.01967659,0.00012991,2]
[406655167,1772039241177,-40.98032341,0.00012991,2]
[406655168,1772039241203,-500.0,0.00012991,2]
[406655169,1772039241227,-500.0,0.00012991,2]
[406655170,1772039241251,-500.0,0.00012991,2]
[406655171,1772039241275,-159.01967659,0.00012991,2]
[406655172,1772039241485,-340.98032341,0.00012991,2]
[406655173,1772039241510,-500.0,0.00012991,2]
[406655174,1772039241534,-500.0,0.00012991,2]
[406655175,1772039241557,-359.01967659,0.00012991,2]
[406655176,1772039241905,-140.98032341,0.00012991,2]
[406655177,1772039241927,-500.0,0.00012991,2]
[406655178,1772039241950,-500.0,0.00012991,2]
[406655179,1772039241973,-500.0,0.00012991,2]
[406655180,1772039241995,-59.01967659,0.00012991,2]
[406655181,1772039242281,-440.98032341,0.00012991,2]
[406655182,1772039242304,-556.47269439,0.00012991,2]
[406655183,1772039242326,-500.0,0.00012991,2]
[406655184,1772039242349,-202.5469822,0.00012991,2]
[406655185,1772039242697,-297.4530178,0.00012991,2]
[406655186,1772039242719,-556.47269439,0.00012991,2]
[406655187,1772039242742,-500.0,0.00012991,2]
[406655188,1772039242764,-346.07428781,0.00012991,2]
[406655189,1772039243024,-153.92571219,0.00012991,2]
[406655190,1772039243047,-556.47269439,0.00012991,2]
[406655191,1772039243072,-500.0,0.00012991,2]
[406655192,1772039243097,-489.60159342,0.00012991,2]
[406655193,1772039243363,-66.87110097,0.00012991,2]
[406655194,1772039243386,-500.0,0.00012991,2]
[406655195,1772039243410,-500.0,0.00012991,2]
[406655196,1772039243433,-556.47269439,0.00012991,2]
[406655197,1772039243458,-76.65620464,0.00012991,2]
[406655198,1772039243824,-423.34379536,0.00012991,2]
[406655199,1772039243847,-500.0,0.00012991,2]
[406655200,1772039243872,-556.47269439,0.00012991,2]
[406655201,1772039243896,-220.18351025,0.00012991,2]
[406655202,1772039244294,-279.81648975,0.00012991,2]
[406655203,1772039244324,-556.47269439,0.00012991,2]
[406655204,1772039244349,-500.0,0.00012991,2]
[406655205,1772039244373,-363.71081586,0.00012991,2]
[406655206,1772039244626,-136.28918414,0.00012991,2]
[406655207,1772039244650,-556.47269439,0.00012991,2]
[406655208,1772039244676,-500.0,0.00012991,2]
[406655209,1772039244699,-507.23812147,0.00012991,2]
[406655210,1772039247856,-49.23457292,0.00012991,2]
[406655211,1772039247880,-500.0,0.00012991,2]
[406655212,1772039247904,-386.29919813,0.00012991,2]
[406655213,1772039247928,-556.47269439,0.00012991,2]
[406655214,1772039247951,-500.0,0.00012991,2]
[406655215,1772039247974,-7.99353456,0.00012991,2]
[406655216,1772039249040,-548.47915983,0.00012991,2]
[406655217,1772039249063,-500.0,0.00012991,2]
[406655218,1772039249087,-556.47269439,0.00012991,2]
[406655219,1772039249110,-395.04814578,0.00012991,2]
[406655220,1772039249461,-104.95185422,0.00012991,2]
[406655221,1772039249484,-556.47269439,0.00012991,2]
[406655222,1772039249506,-500.0,0.00012991,2]
[406655223,1772039249528,-556.47269439,0.00012991,2]
[406655224,1772039249551,-282.102757,0.00012991,2]
[406655225,1772039249801,-217.897243,0.00012991,2]
[406655226,1772039249825,-556.47269439,0.00012991,2]
[406655227,1772039249847,-500.0,0.00012991,2]
[406655228,1772039249871,-556.47269439,0.00012991,2]
[406655229,1772039249895,-169.15736822,0.00012991,2]
[406655230,1772039250202,-330.84263178,0.00012991,2]
[406655231,1772039250227,-556.47269439,0.00012991,2]
[406655232,1772039250251,-500.0,0.00012991,2]
[406655233,1772039250274,-556.47269439,0.00012991,2]
[406655234,1772039250296,-56.21197944,0.00012991,2]
[406655235,1772039250611,-443.78802056,0.00012991,2]
[406655236,1772039250635,-556.47269439,0.00012991,2]
[406655237,1772039250657,-556.47269439,0.00012991,2]
[406655238,1772039250680,-443.26659066,0.00012991,2]
[406655239,1772039251088,-56.73340934,0.00012991,2]
[406655240,1772039251111,-500.0,0.00012991,2]
[406655241,1772039251133,-556.47269439,0.00012991,2]
[406655242,1772039251155,-500.0,0.00012991,2]
[406655243,1772039251176,-386.79389627,0.00012991,2]
[406655244,1772039251360,-169.67879812,0.00012991,2]
[406655245,1772039251385,-556.47269439,0.00012991,2]
[406655246,1772039251407,-500.0,0.00012991,2]
[406655247,1772039251428,-556.47269439,0.00012991,2]
[406655248,1772039251451,-217.3758131,0.00012991,2]
[406655249,1772039251781,-282.6241869,0.00012991,2]
[406655250,1772039251806,-556.47269439,0.00012991,2]
[406655251,1772039251830,-500.0,0.00012991,2]
[406655252,1772039251853,-556.47269439,0.00012991,2]
[406655253,1772039251875,-104.43042432,0.00012991,2]
[406655254,1772039252132,-395.56957568,0.00012991,2]
[406655255,1772039252156,-556.47269439,0.00012991,2]
[406655256,1772039252179,-500.0,0.00012991,2]
[406655257,1772039252200,-500.0,0.00012991,2]
[406655258,1772039252222,-47.95772993,0.00012991,2]
[406655259,1772039252501,-452.04227007,0.00012991,2]
[406655260,1772039252523,-556.47269439,0.00012991,2]
[406655261,1772039252544,-556.47269439,0.00012991,2]
[406655262,1772039252567,-157.13039124,0.00012991,2]
[406655263,1772039252593,-277.88194991,0.00012991,2]
[406655264,1772039252990,-278.59074448,0.00012991,2]
[406655265,1772039253016,-500.0,0.00012991,2]
[406655266,1772039253042,-556.47269439,0.00012991,2]
[406655267,1772039253067,-500.0,0.00012991,2]
[406655268,1772039253095,-164.93656113,0.00012991,2]
[406655269,1772039253551,-391.53613326,0.00012991,2]
[406655270,1772039253578,-500.0,0.00012991,2]
[406655271,1772039253607,-556.47269439,0.00012991,2]
[406655272,1772039253631,-500.0,0.00012991,2]
[406655273,1772039253653,-51.99117235,0.00012991,2]
[406655274,1772039253933,-448.00882765,0.00012991,2]
[406655275,1772039253956,-556.47269439,0.00012991,2]
[406655276,1772039253978,-556.47269439,0.00012991,2]
[406655277,1772039254002,-439.04578357,0.00012991,2]
[406655278,1772039254408,-60.95421643,0.00012991,2]
[406655279,1772039254431,-556.47269439,0.00012991,2]
[406655280,1772039254452,-500.0,0.00012991,2]
[406655281,1772039254473,-556.47269439,0.00012991,2]
[406655282,1772039254495,-326.10039479,0.00012991,2]
[406655283,1772039254783,-173.89960521,0.00012991,2]
[406655284,1772039254806,-556.47269439,0.00012991,2]
[406655285,1772039254828,-500.0,0.00012991,2]
[406655286,1772039254851,-556.47269439,0.00012991,2]
[406655287,1772039254874,-213.15500601,0.00012991,2]
[406655288,1772039255189,-286.84499399,0.00012991,2]
[406655289,1772039255214,-556.47269439,0.00012991,2]
[406655290,1772039255239,-556.47269439,0.00012991,2]
[406655291,1772039255263,-500.0,0.00012991,2]
[406655292,1772039255288,-100.20961723,0.00012991,2]
[406655293,1772039255561,-456.26307716,0.00012991,2]
[406655294,1772039255588,-500.0,0.00012991,2]
[406655295,1772039255614,-556.47269439,0.00012991,2]
[406655296,1772039255641,-487.26422845,0.00012991,2]
[406655297,1772039256602,-12.73577155,0.00012991,2]
[406655298,1772039256624,-556.47269439,0.00012991,2]
[406655299,1772039256649,-500.0,0.00012991,2]
[406655300,1772039256673,-556.47269439,0.00012991,2]
[406655301,1772039256695,-374.31883967,0.00012991,2]
[406655302,1772039256802,-182.15385472,0.00012991,2]
[406655303,1772039256828,-500.0,0.00012991,2]
[406655304,1772039256852,-556.47269439,0.00012991,2]
[406655305,1772039256877,-500.0,0.00012991,2]
[406655306,1772039256900,-261.37345089,0.00012991,2]
[406655307,1772039257150,-295.0992435,0.00012991,2]
[406655308,1772039257174,-500.0,0.00012991,2]
[406655309,1772039257197,-500.0,0.00012991,2]
[406655310,1772039257220,-556.47269439,0.00012991,2]
[406655311,1772039257242,-148.42806211,0.00012991,2]
[406655312,1772039258532,-408.04463228,0.00012991,2]
[406655313,1772039258557,-556.47269439,0.00012991,2]
[406655314,1772039258581,-556.47269439,0.00012991,2]
[406655315,1772039258607,-479.00997894,0.00012991,2]
[406655316,1772039258982,-20.99002106,0.00012991,2]
[406655317,1772039259008,-500.0,0.00012991,2]
[406655318,1772039259034,-500.0,0.00012991,2]
[406655319,1772039259057,-556.47269439,0.00012991,2]
[406655320,1772039259084,-422.53728455,0.00012991,2]
[406655321,1772039259437,-133.93540984,0.00012991,2]
[406655322,1772039259462,-532.27822942,0.00012991,2]
[406655323,1772039259486,-532.27822942,0.00012991,2]
[406655324,1772039259510,-532.27822942,0.00012991,2]
[406655325,1772039259535,-269.2299019,0.00012991,2]
[406655326,1772039259743,-263.04832752,0.00012991,2]
[406655327,1772039259765,-532.27822942,0.00012991,2]
[406655328,1772039259786,-532.27822942,0.00012991,2]
[406655329,1772039260011,-532.27822942,0.00012991,2]